bitfinex/quotes_BTCUSD_20240810
["timestamp","ask_amount","ask_price","bid_price","bid_amount"]
[1723252616459,0.947357,60949.0,60948.0,0.079741]
[1723252616664,0.943357,60949.0,60948.0,0.079741]
[1723252616865,0.515214,60949.0,60948.0,0.079741]
[1723252617074,0.187071,60949.0,60948.0,0.079741]
[1723252617219,0.518214,60949.0,60948.0,0.14877487]
[1723252617643,0.518214,60949.0,60948.0,0.145841]
[1723252617870,0.518214,60949.0,60948.0,0.14879803]
[1723252618389,0.518214,60949.0,60948.0,0.14379803]
[1723252618390,0.846357,60949.0,60948.0,0.14379803]
[1723252618607,0.843357,60949.0,60948.0,0.14379803]
[1723252618885,0.843357,60949.0,60948.0,0.1417573]
[1723252618886,0.847357,60949.0,60948.0,0.1417573]
[1723252619301,0.515214,60949.0,60948.0,0.1417573]
[1723252619706,0.515214,60949.0,60948.0,0.14771433]
[1723252620863,0.843357,60949.0,60948.0,0.14771433]
[1723252621106,0.843357,60949.0,60948.0,0.1447573]
[1723252621374,0.515214,60949.0,60948.0,0.1447573]
[1723252621547,0.843357,60949.0,60948.0,0.1447573]
[1723252621769,0.515214,60949.0,60948.0,0.1417573]
[1723252621925,0.515214,60949.0,60948.0,0.1437573]
[1723252622128,0.515214,60949.0,60948.0,0.1387573]
[1723252622906,0.515214,60949.0,60948.0,0.14171433]
[1723252623105,0.515214,60949.0,60948.0,0.1387573]
[1723252623365,0.515214,60949.0,60948.0,0.1367573]
[1723252623568,0.515214,60949.0,60948.0,0.1397573]
[1723252623716,0.515214,60949.0,60948.0,0.14271433]
[1723252624340,0.187071,60949.0,60948.0,0.14271433]
[1723252624539,0.515214,60949.0,60948.0,0.14271433]
[1723252624922,0.515214,60949.0,60948.0,0.1347573]
[1723252625341,0.515214,60949.0,60948.0,0.13771433]
[1723252626009,0.843357,60949.0,60948.0,0.13471433]
[1723252626341,0.000833,60953.0,60952.0,0.820317]
[1723252626555,0.000833,60953.0,60952.0,1.22943299]
[1723252626761,0.000833,60953.0,60952.0,1.68027258]
[1723252626970,0.000833,60953.0,60952.0,1.56049409]
[1723252627174,0.000833,60953.0,60952.0,1.62859339]
[1723252627378,0.164018,60969.0,60964.0,0.164029]
[1723252627616,0.000832,60970.0,60965.0,0.0623]
[1723252627824,0.164848,60970.0,60965.0,0.2292062]
[1723252628041,0.164848,60970.0,60966.0,0.0825]
[1723252628254,0.164023,60967.0,60966.0,0.0825]
[1723252628459,0.492109,60962.0,60961.0,0.0825]
[1723252628669,0.820182,60962.0,60961.0,0.0825]
[1723252628892,0.843182,60962.0,60961.0,0.0825]
[1723252629327,0.03,60957.0,60948.0,0.0009163]
[1723252629531,0.820357,60949.0,60948.0,0.0009163]
[1723252629735,1.1715,60949.0,60948.0,0.0009163]
[1723252630446,0.515214,60949.0,60948.0,0.0009163]
[1723252630650,0.843357,60949.0,60948.0,0.0009163]
[1723252631884,0.844357,60949.0,60948.0,0.0009163]
[1723252632291,0.843357,60949.0,60948.0,0.0009163]
[1723252632491,0.843357,60949.0,60948.0,0.0019163]
[1723252632913,0.843357,60949.0,60948.0,0.0009163]
[1723252633121,0.844357,60949.0,60948.0,0.0009163]
[1723252633504,0.843357,60949.0,60948.0,0.0009163]
[1723252633862,0.846357,60949.0,60948.0,0.0009163]
[1723252634262,0.518214,60949.0,60948.0,0.0009163]
[1723252634925,0.846357,60949.0,60948.0,0.0009163]
[1723252635138,0.843357,60949.0,60948.0,0.0009163]
[1723252635561,0.844357,60949.0,60948.0,0.0009163]
[1723252635775,0.843357,60949.0,60948.0,0.0009163]
[1723252636177,0.843357,60949.0,60948.0,0.0019163]
[1723252636636,0.843357,60949.0,60948.0,0.0009163]
[1723252636843,1.234,60949.0,60948.0,0.0009163]
[1723252637048,1.235,60949.0,60948.0,0.0009163]
[1723252638188,1.234,60949.0,60948.0,0.0009163]
[1723252638644,1.238,60949.0,60948.0,0.0009163]
[1723252640026,1.83095792,60949.0,60948.0,0.0009163]
[1723252640261,1.94095792,60949.0,60948.0,0.0009163]
[1723252641485,1.93695792,60949.0,60948.0,0.0009163]
[1723252641679,1.94095792,60949.0,60948.0,0.0009163]
[1723252642667,2.04453976,60949.0,60948.0,0.0009163]
[1723252642871,2.20868946,60949.0,60948.0,0.0009163]
[1723252643478,2.10510762,60949.0,60948.0,0.0009163]
[1723252644429,2.04453861,60949.0,60948.0,0.0009163]
[1723252645849,2.04476664,60949.0,60948.0,0.0009163]
[1723252646927,1.94095792,60949.0,60948.0,0.0009163]
[1723252648132,2.04476756,60949.0,60948.0,0.0009163]
[1723252648799,2.04499038,60949.0,60948.0,0.0009163]
[1723252649010,2.20914008,60949.0,60948.0,0.0009163]
[1723252649294,0.03,60947.0,60946.0,0.009141]
[1723252649499,0.502351,60932.0,60930.0,0.009141]
[1723252649732,0.502351,60932.0,60931.0,0.0758]
[1723252649733,1.248819,60932.0,60931.0,0.0758]
[1723252650176,1.271819,60932.0,60931.0,0.0758]
[1723252651469,1.43563392,60932.0,60931.0,0.0001]
[1723252651645,2.07286792,60932.0,60931.0,0.0001]
[1723252652005,2.07586792,60932.0,60931.0,0.0001]
[1723252652211,2.07286792,60932.0,60931.0,0.0001]
[1723252652461,2.23701762,60932.0,60931.0,0.0001]
[1723252652662,2.23701762,60932.0,60931.0,0.0011]
[1723252652663,2.25374002,60932.0,60931.0,0.0011]
[1723252653077,0.03,60923.0,60922.0,0.009141]
[1723252653308,0.502513,60912.0,60905.0,0.0757]
[1723252653517,2.11145392,60912.0,60905.0,0.0757]
[1723252653714,2.13445392,60912.0,60905.0,0.0757]
[1723252653866,1.85545392,60912.0,60905.0,0.0757]
[1723252654068,2.29860362,60912.0,60901.0,0.0757]
[1723252655264,2.01960362,60912.0,60901.0,0.0757]
[1723252655463,0.02,60909.0,60894.0,0.0757]
[1723252655711,0.02,60904.0,60894.0,0.0757]
[1723252655919,0.821085,60895.0,60894.0,0.0757]
[1723252656125,0.821085,60895.0,60894.0,0.0707]
[1723252656126,1.172519,60895.0,60894.0,0.0707]
[1723252656331,0.844085,60895.0,60894.0,0.0707]
[1723252657138,0.844085,60895.0,60894.0,0.0717]
[1723252657540,0.187217,60895.0,60894.0,0.0717]
[1723252657745,0.023,60895.0,60894.0,0.0717]
[1723252657956,0.164217,60895.0,60894.0,0.0717]
[1723252658154,0.515651,60895.0,60894.0,0.0717]
[1723252658436,0.844085,60895.0,60894.0,0.0707]
[1723252658637,0.850085,60895.0,60894.0,0.0717]
[1723252659108,0.844085,60895.0,60894.0,0.0707]
[1723252659296,0.845085,60895.0,60894.0,0.0707]
[1723252660064,0.844085,60895.0,60894.0,0.0707]
[1723252660862,0.515651,60895.0,60894.0,0.0707]
[1723252661108,0.67946592,60895.0,60894.0,0.0707]
[1723252661310,1.00789992,60895.0,60894.0,0.0707]
[1723252661510,1.00789992,60895.0,60894.0,0.07388418]
[1723252661745,1.00789992,60895.0,60894.0,0.0707]
[1723252661746,1.00989992,60895.0,60894.0,0.0707]
[1723252661961,0.844085,60895.0,60894.0,0.0707]
[1723252662344,0.844085,60895.0,60893.0,0.009152]
[1723252662345,0.821097,60894.0,60893.0,0.009152]
[1723252662558,1.43635092,60894.0,60893.0,0.009152]
[1723252665158,1.43735092,60894.0,60893.0,0.009152]
[1723252665574,1.43635092,60894.0,60893.0,0.009152]
[1723252665767,1.44435092,60894.0,60893.0,0.010152]
[1723252666020,1.43635092,60894.0,60893.0,0.009152]
[1723252666373,1.43635092,60894.0,60893.0,0.092352]
[1723252666573,1.43735092,60894.0,60893.0,0.092352]
[1723252666815,1.43635092,60894.0,60893.0,0.092352]
[1723252667029,1.272536,60894.0,60893.0,0.154352]
[1723252667246,1.272536,60894.0,60893.0,0.149352]
[1723252667471,0.844097,60894.0,60893.0,0.149352]
[1723252667695,0.844097,60894.0,60893.0,0.159352]
[1723252668169,0.172219,60894.0,60893.0,0.15357401]
[1723252668394,0.172219,60894.0,60893.0,0.16357401]
[1723252668596,0.164219,60894.0,60893.0,0.16257401]
[1723252668785,0.164219,60894.0,60893.0,0.16357401]
[1723252669104,0.492658,60894.0,60893.0,0.16257401]
[1723252669613,0.164219,60894.0,60893.0,0.16257401]
[1723252669964,0.164219,60894.0,60893.0,0.16457401]
[1723252671143,0.492658,60894.0,60893.0,0.16457401]
[1723252671375,0.492658,60894.0,60893.0,0.16257401]
[1723252671579,0.492658,60894.0,60893.0,0.159352]
[1723252671816,0.492658,60894.0,60893.0,0.163352]
[1723252672019,0.492658,60894.0,60893.0,0.16658846]
[1723252673563,0.492658,60894.0,60893.0,0.15658846]
[1723252674234,0.164219,60894.0,60893.0,0.16658846]
[1723252674657,0.00986083,60907.0,60905.0,0.01]
[1723252675052,0.064,60919.0,60893.0,0.17520338]
[1723252675053,0.164157,60917.0,60916.0,0.01]
[1723252675267,0.064,60930.0,60919.0,0.062]
[1723252675469,0.411269,60932.0,60919.0,0.062]
[1723252675470,0.492448,60920.0,60919.0,0.062]
[1723252675674,0.164149,60920.0,60919.0,0.062]
[1723252675880,0.164149,60920.0,60919.0,0.072]
[1723252676093,0.164149,60920.0,60919.0,0.15838921]
[1723252676298,0.164149,60920.0,60919.0,0.1552]
[1723252676512,0.164149,60920.0,60919.0,0.15938921]
[1723252676892,0.164149,60920.0,60919.0,0.15838921]
[1723252677097,0.165149,60920.0,60919.0,0.16638921]
[1723252677308,0.001,60920.0,60919.0,0.16638921]
[1723252677481,0.165149,60920.0,60919.0,0.16638921]
[1723252677688,0.493448,60920.0,60919.0,0.15638921]
[1723252677863,0.821747,60920.0,60919.0,0.15638921]
[1723252678095,0.821747,60920.0,60919.0,0.1632]
[1723252678096,0.493448,60920.0,60919.0,0.1632]
[1723252678472,0.493448,60920.0,60919.0,0.008]
[1723252678473,1.49776467,60920.0,60919.0,0.008]
[1723252678670,1.43769392,60920.0,60919.0,0.008]
[1723252678821,1.76599292,60920.0,60919.0,0.008]
[1723252679582,0.820842,60913.0,60912.0,0.0932]
[1723252679783,0.843842,60913.0,60912.0,0.0832]
[1723252680544,1.172179,60913.0,60912.0,0.0832]
[1723252680882,0.843842,60913.0,60912.0,0.0832]
[1723252681089,0.843842,60913.0,60912.0,0.0932]
[1723252681286,0.843842,60913.0,60912.0,0.0832]
[1723252682112,0.844842,60913.0,60912.0,0.1022]
[1723252682332,0.843842,60913.0,60912.0,0.0832]
[1723252682533,0.27435335,60920.0,60912.0,0.0832]
[1723252682534,0.01053843,60920.0,60912.0,0.0832]
[1723252682648,0.001,60913.0,60912.0,0.1683]
[1723252682849,0.000833,60920.0,60912.0,0.1683]
[1723252682850,0.000833,60920.0,60913.0,0.0764]
[1723252683147,0.164164,60915.0,60914.0,0.0864]
[1723252683462,0.820816,60915.0,60914.0,0.07928874]
[1723252683646,0.820816,60915.0,60914.0,0.0764]
[1723252684362,0.843816,60915.0,60914.0,0.0764]
[1723252684570,0.843816,60915.0,60914.0,0.0864]
[1723252685255,0.843816,60915.0,60914.0,0.0764]
[1723252685431,0.844816,60915.0,60914.0,0.0844]
[1723252685818,0.843816,60915.0,60914.0,0.0764]
[1723252686380,0.844816,60915.0,60914.0,0.0854]
[1723252686670,0.843816,60915.0,60914.0,0.0764]
[1723252686989,0.51549,60915.0,60914.0,0.0924]
[1723252687102,0.51549,60915.0,60914.0,0.0764]
[1723252687544,0.492513,60912.0,60911.0,0.01]
[1723252687768,0.49252,60911.0,60910.0,0.0764]
[1723252688084,0.023,60915.0,60906.0,0.0764]
[1723252688085,0.164184,60907.0,60906.0,0.0764]
[1723252688285,0.164192,60904.0,60903.0,0.01]
[1723252688573,0.492577,60904.0,60903.0,0.01]
[1723252689288,0.820962,60904.0,60903.0,0.01]
[1723252689504,0.843962,60904.0,60903.0,0.01]
[1723252689830,1.172347,60904.0,60903.0,0.01]
[1723252689957,1.173347,60904.0,60903.0,0.017]
[1723252690165,1.173347,60904.0,60898.0,0.0864]
[1723252690365,1.173347,60904.0,60893.0,0.004152]
[1723252690366,0.164219,60894.0,60893.0,0.004152]
[1723252690592,1.53641402,60894.0,60893.0,0.004152]
[1723252690746,1.73212085,60894.0,60893.0,0.004152]
[1723252690950,1.90558992,60894.0,60893.0,0.004152]
[1723252691784,1.91531807,60894.0,60893.0,0.004152]
[1723252692353,1.92558992,60894.0,60893.0,0.004152]
[1723252693373,1.777025,60892.0,60891.0,0.009252]
[1723252693574,2.45508568,60892.0,60891.0,0.009252]
[1723252693786,2.57808568,60892.0,60891.0,0.009252]
[1723252694449,2.295829,60889.0,60888.0,1e-07]
[1723252694654,2.68833968,60889.0,60888.0,1e-07]
[1723252695088,2.68833968,60889.0,60871.0,0.0001]
[1723252695089,0.164279,60872.0,60871.0,0.0001]
[1723252695308,1.40500992,60872.0,60871.0,0.0001]
[1723252695520,1.83356792,60872.0,60871.0,0.0001]
[1723252695730,2.18512592,60872.0,60871.0,0.0001]
[1723252696152,2.20512592,60872.0,60871.0,0.0001]
[1723252696572,0.834395,60872.0,60871.0,0.0011]
[1723252696780,0.492837,60872.0,60871.0,0.0883]
[1723252696961,1.149953,60872.0,60871.0,0.0883]
[1723252697233,1.162953,60872.0,60871.0,0.0893]
[1723252697430,1.149953,60872.0,60871.0,0.0883]
[1723252697903,1.160953,60872.0,60871.0,0.0893]
[1723252698539,1.183953,60872.0,60871.0,0.0893]
[1723252698745,0.855395,60872.0,60871.0,0.0893]
[1723252699195,1.172953,60872.0,60871.0,0.0883]
[1723252699421,0.844395,60872.0,60871.0,0.0883]
[1723252700390,0.844395,60872.0,60871.0,0.0101]
[1723252700816,0.515837,60872.0,60871.0,0.09194646]
[1723252701629,0.187279,60872.0,60871.0,0.09194646]
[1723252701977,0.164279,60872.0,60871.0,0.15791233]
[1723252702290,0.164279,60872.0,60871.0,0.14791233]
[1723252702499,0.492837,60872.0,60871.0,0.16091233]
[1723252702709,0.492837,60872.0,60871.0,0.07906587]
[1723252702912,0.821395,60872.0,60871.0,0.07606587]
[1723252703210,0.164271,60875.0,60874.0,0.01]
[1723252703460,0.164227,60891.0,60890.0,0.01]
[1723252703752,0.164227,60891.0,60886.0,0.0775]
[1723252703753,0.492699,60889.0,60888.0,0.01]
[1723252703971,0.821165,60889.0,60888.0,0.01]
[1723252704146,0.328442,60894.0,60886.0,0.0875]
[1723252704147,0.164238,60887.0,60886.0,0.0875]
[1723252704284,0.164236,60888.0,60887.0,0.01]
[1723252705325,0.328431,60896.0,60889.0,0.01]
[1723252705526,0.492645,60896.0,60895.0,0.072]
[1723252705730,0.821076,60896.0,60895.0,0.072]
[1723252707460,0.821076,60896.0,60895.0,0.074]
[1723252708222,0.821076,60896.0,60895.0,0.002]
[1723252708353,1.33631892,60896.0,60895.0,0.002]
[1723252708553,1.66474992,60896.0,60895.0,0.002]
[1723252708760,1.76474992,60896.0,60895.0,0.002]
[1723252709273,1.76474992,60896.0,60895.0,0.5]
[1723252709686,1.76774992,60896.0,60895.0,0.5]
[1723252709895,1.76474992,60896.0,60895.0,0.5]
[1723252710273,1.77374992,60896.0,60895.0,0.501]
[1723252710461,1.76474992,60896.0,60895.0,0.5]
[1723252710867,1.77374992,60896.0,60895.0,0.501]
[1723252713863,1.77374992,60896.0,60895.0,0.50384955]
[1723252714341,1.77458192,60896.0,60895.0,0.50384955]
[1723252716288,1.77458192,60896.0,60895.0,0.501]
[1723252717142,1.76558192,60896.0,60895.0,0.5]
[1723252717520,1.77458192,60896.0,60895.0,0.501]
[1723252718294,2.20561292,60896.0,60895.0,0.501]
[1723252718995,2.20561292,60896.0,60895.0,0.336785]
[1723252718996,2.70003292,60896.0,60895.0,0.336785]
[1723252719606,2.70003292,60896.0,60895.0,0.238256]
[1723252719808,2.69104922,60896.0,60895.0,0.17157]
[1723252720010,2.69104922,60896.0,60895.0,0.001]
[1723252720011,3.26653422,60896.0,60895.0,0.001]
[1723252720293,3.26653422,60896.0,60871.0,0.0010163]
[1723252720294,0.512837,60872.0,60871.0,0.0010163]
[1723252720480,1.35550992,60872.0,60871.0,0.0010163]
[1723252720607,1.68406792,60872.0,60871.0,0.0010163]
[1723252721648,2.34880656,60872.0,60871.0,0.0010163]
[1723252721842,2.26100656,60872.0,60871.0,0.0010163]
[1723252722312,2.30400656,60872.0,60871.0,0.0010163]
[1723252723575,2.3041939,60872.0,60871.0,0.0010163]
[1723252724417,2.80159134,60872.0,60871.0,0.0010163]
[1723252724614,2.80159134,60872.0,60850.0,0.009152]
[1723252724615,0.164333,60852.0,60850.0,0.009152]
[1723252724827,0.98547992,60852.0,60850.0,0.009152]
[1723252724977,2.30916591,60852.0,60850.0,0.009152]
[1723252725177,0.02,60846.0,60836.0,0.077]
[1723252725386,0.821867,60837.0,60836.0,0.077]
[1723252725591,1.43742892,60837.0,60836.0,0.077]
[1723252726738,0.944867,60837.0,60836.0,0.077]
[1723252726948,0.59312,60837.0,60836.0,0.0779152]
[1723252727188,0.59712,60837.0,60836.0,0.0779152]
[1723252727367,0.164373,60837.0,60836.0,0.0779152]
[1723252727568,0.49312,60837.0,60836.0,0.0779152]
[1723252727749,0.49712,60837.0,60836.0,0.08108334]
[1723252728158,0.49712,60837.0,60836.0,0.08508334]
[1723252728159,0.49312,60837.0,60836.0,0.08508334]
[1723252728367,0.164373,60837.0,60836.0,0.08508334]
[1723252728576,0.164373,60837.0,60836.0,0.08108334]
[1723252728788,0.1,60845.0,60836.0,0.00408334]
[1723252728989,0.02,60861.0,60836.0,0.00408334]
[1723252728990,0.164373,60837.0,60836.0,0.00408334]
[1723252729249,0.49312,60837.0,60836.0,0.00408334]
[1723252729388,1.250614,60837.0,60836.0,0.00408334]
[1723252729598,1.250614,60837.0,60836.0,0.0009152]
[1723252729797,0.921867,60837.0,60836.0,0.0009152]
[1723252730143,0.921867,60837.0,60836.0,0.0089152]
[1723252730144,0.922867,60837.0,60836.0,0.0089152]
[1723252730372,0.923867,60837.0,60836.0,0.0089152]
[1723252730576,1.273614,60837.0,60836.0,0.0009152]
[1723252730915,1.274614,60837.0,60836.0,0.0049152]
[1723252731108,1.273614,60837.0,60836.0,0.0049152]
[1723252731315,1.273614,60837.0,60836.0,0.0009152]
[1723252731522,1.273614,60837.0,60836.0,0.0049152]
[1723252731753,1.274614,60837.0,60836.0,0.0089152]
[1723252732099,1.275614,60837.0,60836.0,0.0089152]
[1723252732916,1.274614,60837.0,60836.0,0.0009152]
[1723252733320,1.43842892,60837.0,60836.0,0.0049152]
[1723252733530,1.43742892,60837.0,60836.0,0.0049152]
[1723252733731,1.273614,60837.0,60836.0,0.0049152]
[1723252734255,1.557404,60827.0,60811.0,0.0771]
[1723252734437,1.31461792,60827.0,60811.0,0.139]
[1723252734642,1.41461792,60827.0,60811.0,0.139]
[1723252734900,1.43761792,60827.0,60818.0,0.01]
[1723252736370,1.76641892,60827.0,60818.0,0.01]
[1723252736571,1.45161792,60827.0,60826.0,0.010163]
[1723252736775,1.78041892,60827.0,60826.0,0.010163]
[1723252736999,1.76641892,60827.0,60826.0,0.009163]
[1723252737121,1.77636283,60827.0,60826.0,0.009163]
[1723252737322,1.79736283,60827.0,60826.0,0.011163]
[1723252737573,1.78336283,60827.0,60826.0,0.010163]
[1723252737780,1.44756183,60827.0,60826.0,0.009163]
[1723252737996,1.45856183,60827.0,60826.0,0.010163]
[1723252738164,1.45856183,60827.0,60826.0,0.084263]
[1723252738165,1.269803,60827.0,60826.0,0.084263]
[1723252738362,1.158803,60827.0,60826.0,0.083263]
[1723252738562,0.501201,60827.0,60826.0,0.084263]
[1723252738765,0.512201,60827.0,60826.0,0.160963]
[1723252738965,0.501201,60827.0,60826.0,0.16295572]
[1723252739210,0.507201,60827.0,60826.0,0.160963]
[1723252739374,0.507201,60827.0,60826.0,0.16403182]
[1723252739534,0.499201,60827.0,60826.0,0.16403182]
[1723252739730,0.506201,60827.0,60826.0,0.16503182]
[1723252740395,0.499201,60827.0,60826.0,0.16403182]
[1723252740607,0.822002,60827.0,60826.0,0.16303182]
[1723252741054,1.155803,60827.0,60826.0,0.159963]
[1723252743348,0.007,60827.0,60826.0,0.161963]
[1723252743802,0.1714,60827.0,60826.0,0.16499847]
[1723252744036,0.007,60827.0,60826.0,0.16499847]
[1723252744244,0.007,60827.0,60826.0,0.49180447]
[1723252744451,0.328767,60834.0,60833.0,0.01]
[1723252744578,0.493122,60837.0,60836.0,0.1545]
[1723252744793,0.88435474,60851.0,60842.0,0.0905]
[1723252744794,0.493071,60843.0,60842.0,0.0905]
[1723252744984,0.32869,60848.0,60842.0,0.074]
[1723252745194,0.821723,60848.0,60847.0,0.01]
[1723252745397,0.3503,60860.0,60848.0,0.0805]
[1723252745579,0.328667,60852.0,60849.0,0.01]
[1723252745779,0.328652,60855.0,60849.0,0.23932903]
[1723252745978,0.328667,60852.0,60849.0,0.23634646]
[1723252746181,0.822524,60850.0,60849.0,0.1545]
[1723252746388,0.822524,60850.0,60849.0,0.15746275]
[1723252746589,0.493847,60850.0,60849.0,0.1545]
[1723252746793,0.164346,60847.0,60846.0,0.01]
[1723252746999,0.164354,60844.0,60843.0,0.0905]
[1723252747205,0.493063,60844.0,60843.0,0.0905]
[1723252747439,0.821772,60844.0,60843.0,0.0905]
[1723252747636,0.821772,60844.0,60843.0,0.0805]
[1723252747637,0.657418,60844.0,60843.0,0.0805]
[1723252747835,0.657418,60844.0,60843.0,0.0905]
[1723252747836,0.493063,60844.0,60843.0,0.0905]
[1723252748280,0.493063,60844.0,60843.0,0.09346275]
[1723252749222,0.164352,60845.0,60843.0,0.08946275]
[1723252749757,0.164352,60845.0,60844.0,0.01]
[1723252749996,0.164352,60845.0,60843.0,0.08946275]
[1723252749997,0.164354,60844.0,60843.0,0.08946275]
[1723252750203,0.165354,60844.0,60843.0,0.0965]
[1723252750414,0.494063,60844.0,60843.0,0.09346275]
[1723252750815,0.493063,60844.0,60843.0,0.08846275]
[1723252751015,0.493896,60844.0,60843.0,0.08846275]
[1723252751364,0.493896,60844.0,60843.0,0.08346275]
[1723252751516,0.166187,60844.0,60843.0,0.09046275]
[1723252751891,0.001833,60844.0,60843.0,0.16446275]
[1723252753115,0.001833,60844.0,60843.0,0.17346275]
[1723252754189,0.001833,60844.0,60843.0,0.50163467]
[1723252754398,0.001833,60844.0,60843.0,1.15906267]
[1723252755014,0.001669,60844.0,60843.0,1.15906267]
[1723252755338,0.000669,60844.0,60843.0,1.15206267]
[1723252755542,0.001669,60844.0,60843.0,1.15906267]
[1723252755763,0.001669,60844.0,60843.0,1.15006267]
[1723252756157,0.002669,60844.0,60843.0,1.16006267]
[1723252756599,0.001669,60844.0,60843.0,1.15006267]
[1723252756976,0.001669,60844.0,60843.0,1.15706267]
[1723252757426,0.001669,60844.0,60843.0,1.17106267]
[1723252757999,0.001669,60844.0,60843.0,1.61049801]
[1723252758205,0.001669,60844.0,60843.0,1.18106267]
[1723252758406,0.001669,60844.0,60843.0,0.84234867]
[1723252759749,0.001669,60844.0,60843.0,1.17106267]
[1723252760543,0.001669,60844.0,60843.0,0.84234867]
[1723252760757,0.001669,60844.0,60843.0,1.17106267]
[1723252761557,0.001669,60844.0,60843.0,0.84234867]
[1723252762961,0.001669,60844.0,60843.0,0.51363467]
[1723252763163,0.001669,60844.0,60843.0,0.84234867]
[1723252765339,0.001669,60844.0,60843.0,1.17106267]
[1723252765774,0.001669,60844.0,60843.0,1.16106267]
[1723252766210,0.001669,60844.0,60843.0,1.49977667]
[1723252766386,0.001669,60844.0,60843.0,1.57326966]
[1723252766600,0.001669,60844.0,60843.0,1.67322865]
[1723252767183,0.001669,60844.0,60843.0,1.59573566]
[1723252767408,0.001669,60844.0,60843.0,1.68321212]
[1723252767584,0.000669,60844.0,60843.0,1.66921212]
[1723252767801,0.000669,60844.0,60843.0,1.64521212]
[1723252768002,0.000669,60844.0,60843.0,2.78844031]
[1723252768260,0.000669,60844.0,60843.0,2.78266188]
[1723252768579,0.000669,60844.0,60843.0,2.92964786]
[1723252768703,0.000669,60844.0,60843.0,2.92164786]
[1723252768905,0.000669,60844.0,60843.0,2.93164786]
[1723252769106,0.000669,60844.0,60843.0,2.94564786]
[1723252769580,0.000669,60844.0,60843.0,2.77466188]
[1723252769849,0.000669,60844.0,60843.0,2.78466188]
[1723252770123,0.000832,60850.0,60849.0,1.509069]
[1723252770311,0.000832,60850.0,60849.0,2.65814291]
[1723252770518,0.000832,60850.0,60849.0,2.66099209]
[1723252770721,0.000832,60850.0,60849.0,2.33231009]
[1723252770894,0.000832,60850.0,60849.0,2.37124786]
[1723252771313,0.000832,60850.0,60849.0,2.33631009]
[1723252771514,0.000832,60850.0,60849.0,2.32631009]
[1723252771695,0.000832,60850.0,60849.0,2.31231009]
[1723252772473,0.000832,60850.0,60849.0,2.32631009]
[1723252772636,0.000832,60850.0,60849.0,1.99762809]
[1723252773046,0.000832,60850.0,60849.0,2.01162809]
[1723252773246,0.000832,60850.0,60849.0,1.99762809]
[1723252773590,0.000832,60850.0,60849.0,2.32631009]
[1723252773725,0.000832,60850.0,60849.0,2.01162809]
[1723252773932,0.000832,60850.0,60849.0,2.01103777]
[1723252774273,0.000832,60850.0,60849.0,2.33971977]
[1723252774607,0.000832,60850.0,60849.0,2.33969109]
[1723252774992,0.000832,60850.0,60849.0,2.33969108]
[1723252775554,0.000832,60850.0,60849.0,2.34969108]
[1723252775756,0.000832,60850.0,60849.0,2.35969108]
[1723252776352,0.000832,60850.0,60849.0,2.34969108]
[1723252777224,0.000832,60850.0,60849.0,2.35969108]
[1723252777802,0.000832,60850.0,60849.0,2.34969108]
[1723252778006,0.000832,60850.0,60849.0,2.96969108]
[1723252778211,0.000832,60850.0,60849.0,2.64100908]
[1723252778413,0.000832,60850.0,60849.0,2.5416691]
[1723252778590,0.000832,60850.0,60849.0,2.96984212]
[1723252779805,0.000832,60850.0,60849.0,2.97984212]
[1723252780014,0.000832,60850.0,60849.0,2.96984212]
[1723252780425,0.000832,60850.0,60849.0,2.97984212]
[1723252781480,0.000832,60850.0,60849.0,2.96984212]
[1723252782591,0.000832,60850.0,60849.0,2.97984212]
[1723252782788,0.000832,60850.0,60849.0,2.96984212]
[1723252783206,0.000832,60850.0,60849.0,2.97984212]
[1723252784320,0.000832,60850.0,60849.0,3.04805221]
[1723252784949,0.000832,60850.0,60849.0,3.14609843]
[1723252785143,0.000832,60850.0,60849.0,3.13609843]
[1723252785419,0.000832,60850.0,60849.0,3.14609843]
[1723252786060,0.000832,60850.0,60849.0,3.47478043]
[1723252786272,0.000832,60850.0,60849.0,3.04805221]
[1723252786675,0.000832,60850.0,60849.0,2.94856027]
[1723252786896,0.000832,60850.0,60849.0,3.04779549]
[1723252787328,0.000832,60850.0,60849.0,3.17035327]
[1723252787627,0.000832,60850.0,60849.0,3.04779549]
[1723252787855,0.000832,60850.0,60849.0,3.17044398]
[1723252788060,0.000832,60850.0,60849.0,3.04779549]
[1723252789158,0.000832,60850.0,60849.0,3.47647749]
[1723252789293,0.000832,60850.0,60849.0,3.48847749]
[1723252789497,0.000832,60850.0,60849.0,3.72375768]
[1723252790338,0.000832,60850.0,60849.0,3.94123561]
[1723252790726,0.000832,60850.0,60849.0,3.72375768]
[1723252790900,0.000832,60850.0,60849.0,3.71175768]
[1723252791086,0.000832,60850.0,60849.0,4.8695722]
[1723252791449,0.000832,60850.0,60849.0,4.9523586]
[1723252791655,0.000832,60850.0,60849.0,4.9723586]
[1723252791809,0.000832,60850.0,60849.0,4.9743586]
[1723252792009,0.000832,60850.0,60849.0,4.9723586]
[1723252792934,0.000832,60850.0,60849.0,4.9823586]
[1723252793255,0.000832,60850.0,60849.0,5.20183653]
[1723252794188,0.000832,60850.0,60849.0,5.20193642]
[1723252794400,0.000832,60850.0,60849.0,5.20194731]
[1723252794609,0.000832,60850.0,60849.0,5.08666082]
[1723252794814,0.000832,60850.0,60849.0,3.9839645]
[1723252795016,0.49107874,60870.0,60869.0,1.318309]
[1723252795234,0.49107874,60870.0,60869.0,1.63034243]
[1723252795450,0.0626,60882.0,60881.0,0.01]
[1723252795656,0.0626,60882.0,60881.0,0.174254]
[1723252796066,0.0626,60882.0,60881.0,0.17698325]
[1723252796263,0.0626,60882.0,60881.0,0.50549225]
[1723252796419,0.0626,60882.0,60881.0,0.17698325]
[1723252796826,0.0626,60882.0,60881.0,0.68030717]
[1723252797021,0.0639,60886.0,60883.0,0.164248]
[1723252797271,0.0639,60886.0,60885.0,0.01]
[1723252797612,0.0639,60886.0,60885.0,0.01272925]